lending/lending_fUSD_20240401
["ID","MTS","AMOUNT","RATE_DAILY","PERIOD"]
[321196366,1711969842290,-500.0,0.00057547,120]
[321196367,1711969842300,-500.0,0.00057547,120]
[321196368,1711969842309,-500.0,0.00057547,120]
[321196369,1711969842319,-500.0,0.00057547,21]
[321196370,1711969842329,-500.0,0.00057547,120]
[321196371,1711969842339,-500.0,0.00057547,120]
[321196372,1711969842348,-418.08,0.00057547,120]
[321196373,1711969842357,-500.0,0.00057547,120]
[321196374,1711969842367,-1412.92,0.00057547,120]
[321196375,1711969842377,-500.0,0.00057547,120]
[321196376,1711969842387,-500.0,0.00057547,120]
[321196377,1711969842397,-500.0,0.00057547,120]
[321196378,1711969842406,-1061.0,0.000576,13]
[321196379,1711969842415,-157.09144,0.0005761,85]
[321196380,1711969842425,-1446.22167086,0.00057627,36]
[321196381,1711969842435,-216.49139896,0.000577,2]
[321196382,1711969842445,-309.68145603,0.00057758,2]
[321196383,1711969842454,-7500.0,0.000578,3]
[321196384,1711969842464,-158.033325,0.000578,120]
[321196385,1711969842474,-151.0,0.000578,120]
[321196386,1711969842483,-151.0,0.000578,120]
[321196387,1711969842493,-151.0,0.000578,120]
[321196388,1711969842503,-151.0,0.000578,120]
[321196389,1711969842512,-692.373074,0.000578,120]
[321196390,1711969842522,-692.373074,0.000578,120]
[321196391,1711969842531,-500.0,0.00057821,120]
[321196393,1711969842541,-151.0,0.00057821,60]
[321196394,1711969842551,-151.0,0.00057821,120]
[321196395,1711969842561,-151.0,0.00057821,30]
[321196396,1711969842571,-151.0,0.00057821,30]
[321196397,1711969842581,-287.244684,0.00057821,120]
[321196398,1711969842592,-287.244684,0.00057821,120]
[321196399,1711969842604,-217.887252,0.00057821,120]
[321196400,1711969842614,-217.887252,0.00057821,120]
[321196401,1711969842623,-620.04,0.00057821,120]
[321196402,1711969842634,-500.0,0.00057821,120]
[321196403,1711969842644,-500.0,0.00057821,120]
[321196405,1711969842653,-660.07,0.00057821,120]
[321196407,1711969842663,-500.0,0.00057821,120]
[321196409,1711969842674,-919.97,0.00057821,120]
[321196411,1711969842685,-1058.65,0.00057821,120]
[321196412,1711969842694,-500.0,0.00057821,120]
[321196413,1711969842704,-683.76,0.00057821,120]
[321196414,1711969842714,-500.0,0.00057821,120]
[321196416,1711969842725,-500.0,0.00057821,120]
[321196417,1711969842735,-879.93,0.00057821,120]
[321196418,1711969842745,-658.3,0.00057821,120]
[321196419,1711969842757,-2341.91,0.00057821,120]
[321196420,1711969842766,-852.23,0.00057821,120]
[321196421,1711969842777,-500.0,0.00057821,120]
[321196422,1711969842786,-500.0,0.00057821,120]
[321196423,1711969842796,-500.0,0.00057821,120]
[321196424,1711969842805,-500.0,0.00057821,21]
[321196425,1711969842814,-500.0,0.00057821,120]
[321196426,1711969842823,-500.0,0.00057821,120]
[321196427,1711969842832,-500.0,0.00057821,120]
[321196428,1711969842842,-1412.92,0.00057821,120]
[321196429,1711969842851,-500.0,0.00057821,120]
[321196430,1711969842861,-500.0,0.00057821,120]
[321196431,1711969842870,-500.0,0.00057821,120]
[321196432,1711969842879,-151.0,0.00057821,120]
[321196433,1711969842889,-255.83591984,0.00057899,2]
[321196434,1711969842898,-1000.0,0.00057899,2]
[321196435,1711969842908,-1000.0,0.00057899,2]
[321196436,1711969842918,-1000.0,0.00057899,2]
[321196437,1711969842927,-1000.0,0.00057899,2]
[321196438,1711969842936,-1000.0,0.00057899,2]
[321196439,1711969842946,-1000.0,0.00057899,2]
[321196440,1711969842955,-1000.0,0.00057899,2]
[321196441,1711969842965,-1000.0,0.00057899,2]
[321196442,1711969842974,-1000.0,0.00057899,2]
[321196443,1711969842984,-1000.0,0.00057899,2]
[321196444,1711969842994,-1000.0,0.00057899,2]
[321196445,1711969843005,-1000.0,0.00057899,2]
[321196446,1711969843014,-1000.0,0.00057899,2]
[321196447,1711969843024,-1000.0,0.00057899,2]
[321196448,1711969843034,-1000.0,0.00057899,2]
[321196449,1711969843043,-1000.0,0.00057899,2]
[321196450,1711969843053,-1000.0,0.00057899,2]
[321196451,1711969843062,-1000.0,0.00057899,2]
[321196452,1711969843071,-1000.0,0.00057899,2]
[321196453,1711969843082,-1000.0,0.00057899,2]
[321196454,1711969843091,-1000.0,0.00057899,2]
[321196455,1711969843102,-1000.0,0.00057899,2]
[321196456,1711969843111,-1031.29625762,0.00057899,2]
[321196457,1711969843121,-25967.953876,0.000579,2]
[321196458,1711969843131,-19986.08,0.000579,120]
[321196459,1711969843141,-2205.57239993,0.000579,6]
[321196460,1711969843151,-491.0,0.000579,37]
[321196461,1711969843161,-162.10946534,0.000579,14]
[321196462,1711969843170,-150.72,0.0005799,120]
[321196463,1711969843180,-158.96,0.0005799,30]
[321196464,1711969843190,-158.96,0.0005799,30]
[321196465,1711969843199,-158.96,0.0005799,30]
[321196466,1711969843210,-500.0,0.00057997,120]
[321196467,1711969843220,-1033.53881792,0.00057997,2]
[321196468,1711969843230,-533.3946999,0.00057998,7]
[321196469,1711969843240,-400.0,0.00057998,2]
[321196470,1711969843250,-155.0,0.00057998,4]
[321196471,1711969843261,-10763.80111839,0.00057998,4]
[321196472,1711969843271,-151.0,0.00057998,120]
[321196474,1711969843281,-154.625424,0.00057998,120]
[321196476,1711969843290,-151.0,0.00057998,120]
[321196478,1711969843299,-692.373074,0.00057998,120]
[321196480,1711969843309,-692.373074,0.00057998,120]
[321196482,1711969843319,-151.0,0.00057998,120]
[321196484,1711969843328,-3045.72998735,0.00057999,120]
[321196486,1711969843338,-300.02,0.00057999,120]
[321196488,1711969843347,-3121.20318313,0.00057999,120]
[321196490,1711969843356,-151.0,0.00057999,60]
[321196492,1711969843366,-151.0,0.00057999,120]
[321196494,1711969843375,-151.0,0.00057999,30]
[321196496,1711969843384,-151.0,0.00057999,30]
[321196498,1711969843395,-287.244684,0.00057999,120]
[321196500,1711969843404,-287.244684,0.00057999,120]
[321196502,1711969843414,-217.887252,0.00057999,120]
[321196504,1711969843424,-217.887252,0.00057999,120]
[321196506,1711969843434,-151.0,0.00057999,120]
[321196508,1711969843444,-72020.16732109,0.00058,36]
[321196510,1711969843454,-596127.39778224,0.00058,30]
[321196523,1711969843529,-21338.85041796,0.00057002,2]
[321196528,1711969843553,-92423.69682041,0.00057002,2]
[321196530,1711969843564,-3035.96303191,0.00057002,2]
[321196540,1711969845990,-356.60303783,0.00056999,120]
[321196543,1711969916588,163.0,0.000429,3]
[321196544,1711969917639,2616.3937,0.00043093,2]
[321196546,1711970246417,250.0,0.00043243,30]
[321196547,1711970283017,176.04,0.00041096,2]
[321196551,1711970541090,153.49,0.00037808,2]
[321196552,1711970695542,250.0,0.00043,90]
[321196555,1711970744875,1698.82217476,0.00037808,10]
[321196603,1711971038587,-153.49,0.00043318,2]
[321196604,1711971038597,-153.49,0.00048828,2]
[321196605,1711971038606,-157.13253595,0.000499,2]
[321196606,1711971038616,-2452.46381408,0.00049999,2]
[321196610,1711971039950,-279.7584,0.00049999,2]
[321196611,1711971040011,-472.13214372,0.00049999,2]
[321196612,1711971040020,-500.0,0.0005,7]
[321196613,1711971040029,-157.13253594,0.00052212,2]
[321196614,1711971040038,-409.99,0.00053266,2]
[321196615,1711971040047,-150.0,0.00053499,10]
[321196616,1711971040058,-916.21447286,0.000535,120]
[321196617,1711971040133,-2125.39352714,0.000535,120]
[321196618,1711971040142,-346.53295157,0.000535,120]
[321196619,1711971040420,-724.48694538,0.000535,120]
[321196621,1711971040432,-1970.58910305,0.000535,120]
[321196623,1711971040442,-3041.609,0.000535,120]
[321196625,1711971040451,-3041.608,0.000535,120]
[321196627,1711971040461,-3041.609,0.000535,120]
[321196628,1711971040472,-476.94,0.00054338,2]
[321196629,1711971040481,-153.49,0.00054338,2]
[321196630,1711971040491,-157.13253594,0.00054523,2]
[321196631,1711971040500,-890.0,0.00055,20]
[321196632,1711971040512,-962.0,0.00055,4]
[321196633,1711971040521,-154.05,0.00055125,120]
[321196634,1711971040530,-185.98,0.00055129,30]
[321196635,1711971040540,-250.0,0.00055173,120]
[321196636,1711971040549,-663.79,0.00055184,2]
[321196637,1711971040558,-293.68,0.00055271,120]
[321196638,1711971040568,-8231.52,0.00055271,2]
[321196639,1711971040577,-250.0,0.0005535,120]
[321196640,1711971040586,-555.94,0.00055357,2]
[321196641,1711971040596,-409.99,0.0005553,2]
[321196642,1711971040606,-152.64,0.0005565,2]
[321196643,1711971040615,-175.14,0.00055724,2]
[321196644,1711971040624,-174.34,0.00055839,2]
[321196645,1711971040634,-1085.62,0.00055871,120]
[321196646,1711971040643,-349.23,0.00055953,2]
[321196647,1711971040653,-1000.71730822,0.00056,120]
[321196648,1711971040662,-554.13,0.00056332,2]
[321196649,1711971040671,-3967.8314,0.00056803,15]
[321196650,1711971040681,-162.36854922,0.00056834,2]
[321196651,1711971040690,-157.13253594,0.00056835,2]
[321196652,1711971040699,-1205.18472579,0.00056835,35]
[321196653,1711971040708,-1756.22978003,0.00056888,7]
[321196654,1711971040718,-656.44057872,0.00056896,7]
[321196655,1711971040727,-504.53499359,0.00056899,5]
[321196656,1711971040737,-815.41661454,0.000569,2]
[321196657,1711971040747,-160.83703763,0.000569,2]
[321196658,1711971040756,-2113.66752084,0.000569,2]
[321196659,1711971040766,-150.72,0.00056901,120]
[321196660,1711971040775,-516.7,0.00056902,120]
[321196661,1711971040785,-527.57,0.00056902,120]
[321196662,1711971040794,-470.25000021,0.00056902,120]
[321196663,1711971040804,-457.75776227,0.00056902,120]
[321196664,1711971040813,-751.78,0.00056902,120]
[321196665,1711971040826,-500.0,0.00056902,120]
[321196666,1711971040836,-550.06,0.00056902,120]
[321196667,1711971040846,-569.8,0.00056902,120]
[321196668,1711971040855,-882.2,0.00056902,120]
[321196669,1711971040864,-500.0,0.00056902,120]
[321196670,1711971040873,-733.27,0.00056902,120]
[321196671,1711971040882,-500.0,0.00056902,120]
[321196672,1711971040892,-548.58,0.00056902,120]
[321196673,1711971040901,-500.0,0.00056902,120]
[321196674,1711971040910,-710.19,0.00056902,120]
[321196675,1711971040919,-500.0,0.00056902,120]
[321196676,1711971040928,-500.0,0.00056902,21]
[321196677,1711971040937,-1951.59,0.00056902,120]
[321196678,1711971040946,-500.0,0.00056902,120]
[321196679,1711971040956,-500.0,0.00056902,120]
[321196680,1711971040966,-500.0,0.00056902,120]
[321196681,1711971040977,-500.0,0.00056902,120]
[321196682,1711971040987,-1177.43,0.00056902,120]
[321196683,1711971040996,-500.0,0.00056902,120]
[321196684,1711971041006,-500.0,0.00056902,120]
[321196685,1711971041017,-194.2,0.00056902,120]
[321196686,1711971041026,-500.0,0.00056902,31]
[321196687,1711971041036,-500.0,0.00056902,31]
[321196688,1711971041046,-500.0,0.00056902,31]
[321196689,1711971041056,-232.6,0.00056902,31]
[321196690,1711971041065,-500.0,0.00056902,31]
[321196691,1711971041074,-500.0,0.00056902,31]
[321196692,1711971041083,-500.0,0.00056902,31]
[321196693,1711971041093,-500.0,0.00056902,31]
[321196694,1711971041103,-500.0,0.00056902,31]
[321196695,1711971041112,-500.0,0.00056902,31]
[321196696,1711971041122,-500.0,0.00056902,31]
[321196697,1711971041132,-5041.49333529,0.00056903,7]
[321196710,1711971043371,-9342.96636819,0.00056903,7]
[321196711,1711971043383,-5822.96933581,0.00056903,7]
[321196712,1711971043395,-2869.68426234,0.00056903,7]
[321196713,1711971043435,-16719.26063919,0.00056903,7]
[321196714,1711971043448,-1285.90608737,0.00056903,7]
[321196715,1711971043460,-2395.15288092,0.00056903,7]
[321196716,1711971043473,-6329.56368974,0.00056903,7]
[321196717,1711971043485,-5335.92161874,0.00056903,7]
[321196718,1711971043497,-5153.16914461,0.00056903,7]
[321196742,1711971046418,-5341.2,0.00056903,7]
[321196755,1711971049667,225.81019362,0.00037808,4]
[321196758,1711971064062,156.27,0.00037808,2]
[321196760,1711971307499,168.0,0.000429,3]
[321196762,1711971346621,2600.0,0.00043,2]
[321196763,1711971590789,913.0,0.000433,2]
[321196766,1711971771715,350.0,0.00033,3]
[321196768,1711971909747,160.0,0.000429,3]
[321196769,1711971910377,152.0,0.000429,3]
[321196787,1711972232308,-161.75286921,0.00049893,2]
[321196788,1711972232318,-4050.06575271,0.0004999,4]
[321196789,1711972232327,-3204.3543578,0.00049991,2]
[321196790,1711972232337,-9644.0,0.0005,2]
[321196791,1711972232346,-156.27,0.00051977,2]
[321196792,1711972232355,-431.8,0.00053606,2]
[321196793,1711972232364,-6719.86324907,0.00055,30]
[321196794,1711972232374,-153.91,0.00055174,120]
[321196795,1711972232383,-244.73,0.00055489,120]
[321196796,1711972232392,-807.16,0.0005555,2]
[321196797,1711972232401,-1000.0,0.00055558,120]
[321196798,1711972232410,-203.65,0.00055558,30]
[321196799,1711972232419,-1362.85766619,0.00055763,4]
[321196800,1711972232428,-1144.56,0.00055765,120]
[321196801,1711972232438,-499.99,0.00055765,2]
[321196802,1711972232447,-353.43,0.00055765,2]
[321196803,1711972232456,-170.35,0.00055827,2]
[321196804,1711972232466,-431.8,0.00055869,2]
[321196805,1711972232475,-168.67,0.00055906,2]
[321196806,1711972232485,-332.24232821,0.00056,10]
[321196807,1711972232494,-155.0,0.0005634,4]
[321196808,1711972232504,-1510.0,0.000564,90]
[321196809,1711972232512,-15495.62040259,0.000566,120]
[321196810,1711972232524,-594.67731106,0.000566,120]
[321196824,1711972238066,-386.70562252,0.000566,120]
[321196825,1711972238229,-388.36688483,0.000566,120]
[321196826,1711972238239,-6310.32518004,0.00056703,2]
[321196827,1711972238251,-3179.65363776,0.00056703,2]
[321196828,1711972238285,-1352.35230468,0.00056703,2]
[321196829,1711972238297,-2254.84639912,0.00056703,2]
[321196830,1711972238305,-573.38,0.00056703,2]
[321196831,1711972238315,-1340.91626363,0.00056703,2]
[321196832,1711972238328,-746.89027862,0.00056703,2]
[321196833,1711972238343,-412.19345775,0.00056703,2]
[321196834,1711972238353,-500.0,0.00056802,120]
[321196835,1711972238365,-532.77259356,0.00056802,4]
[321196836,1711972238376,-527.14,0.00056802,120]
[321196837,1711972238386,-720.46,0.00056802,120]
[321196838,1711972238395,-845.45,0.00056802,120]
[321196839,1711972238409,-500.0,0.00056802,120]
[321196840,1711972238418,-546.06,0.00056802,120]
[321196841,1711972238428,-447.77158304,0.00056802,120]
[321196842,1711972238439,-500.0,0.00056802,120]
[321196843,1711972238449,-525.72,0.00056802,120]
[321196844,1711972238459,-901.63236565,0.00056802,120]
[321196845,1711972238476,-585.70767439,0.00056802,120]
[321196846,1711972238509,-382.93995996,0.00056802,120]
[321196847,1711972238519,-500.0,0.00056802,120]
[321196848,1711972238528,-305.31628572,0.00056802,120]
[321196849,1711972238538,-500.0,0.00056802,120]
[321196850,1711972238547,-680.6,0.00056802,120]
[321196851,1711972238556,-500.0,0.00056802,2]
[321196852,1711972238566,-500.0,0.00056802,120]
[321196853,1711972238575,-500.0,0.00056802,120]
[321196854,1711972238584,-500.0,0.00056802,120]
[321196855,1711972238594,-426.5312395,0.00056802,21]
[321196856,1711972238604,-500.0,0.00056802,120]
[321196857,1711972238613,-1128.37,0.00056802,120]
[321196858,1711972238623,-500.0,0.00056802,120]
[321196860,1711972238632,-500.0,0.00056802,2]
[321196863,1711972238642,-500.0,0.00056802,120]
[321196864,1711972238651,-500.0,0.00056802,120]
[321196866,1711972238660,-581.4,0.00056802,31]
[321196868,1711972238670,-162.10946534,0.00056803,14]
[321196871,1711972238679,-365.202,0.00056803,2]
[321196872,1711972238689,-69370.958,0.00056803,2]
[321196873,1711972238698,-33017.6297,0.00056803,2]
[321196874,1711972238708,-27170.94334952,0.00056803,2]
[321196876,1711972240097,-505.17,0.00056802,120]
[321196877,1711972240107,-79419.24030227,0.00056803,2]
[321196878,1711972240379,-1961.44906797,0.00056803,2]
[321196879,1711972240487,-2123.82,0.00056803,2]
[321196881,1711972243081,-690.44,0.00056802,120]
[321196883,1711972243091,-859.10318024,0.00056803,2]
[321196884,1711972243102,-166.6673719,0.0005682,2]
[321196885,1711972243113,-1104.75266528,0.00056834,35]
[321196886,1711972243124,-10.077465,0.00056834,2]
[321196887,1711972243137,-151.6754042,0.00056834,2]
[321196888,1711972243148,-193.46075639,0.00056895,20]
[321196889,1711972243158,-47.34481921,0.00056899,2]
[321196890,1711972243245,-496.26625715,0.00056899,2]
[321196891,1711972243255,-763.02857143,0.000569,7]
[321196892,1711972243265,-160.32532237,0.00056901,7]
[321196893,1711972243275,-150.72,0.00056901,120]
[321196894,1711972243286,-372.62237837,0.00056902,120]
[321196895,1711972243300,-543.99672223,0.00056902,120]
[321196896,1711972243311,-532.89076118,0.00056902,120]
[321196897,1711972243320,-589.92500423,0.00056902,2]
[321196898,1711972243331,-192925.73053911,0.00056903,7]
[321196899,1711972243342,-1756.22978003,0.00056903,7]
[321196900,1711972243351,-656.44057872,0.00056904,7]
[321196901,1711972243362,-763.02857143,0.00056906,7]
[321196902,1711972243374,-1406.66876369,0.00056908,2]
[321196903,1711972243384,-151.0,0.00056911,30]
[321196904,1711972243395,-151.0,0.00056911,30]
[321196905,1711972243405,-152.521076,0.00056911,120]
[321196906,1711972243416,-152.521076,0.00056911,120]
[321196907,1711972243426,-201.071279,0.00056911,120]
[321196908,1711972243436,-201.071279,0.00056911,120]
[321196909,1711972243446,-151.0,0.00056911,60]
[321196910,1711972243455,-151.0,0.00056911,120]
[321196911,1711972243466,-484.661152,0.00056911,120]
[321196912,1711972243476,-484.661152,0.00056911,120]
[321196913,1711972243486,-151.0,0.00056911,120]
[321196914,1711972243495,-151.0,0.00056911,120]
[321196915,1711972243504,-258563.01790131,0.00056911,7]
[321196916,1711972243514,-1756.22978003,0.00056915,7]
[321196917,1711972243524,-1756.22978003,0.00056917,7]
[321196918,1711972243534,-656.44057872,0.0005692,7]
[321196919,1711972243543,-29561.55173553,0.00056924,7]
[321196920,1711972243555,-464.19606063,0.00056924,7]
[321196921,1711972243567,-411.7493109,0.00056924,7]
[321196922,1711972243588,-634.12454835,0.00056924,7]
[321196923,1711972243607,-293.33957425,0.00056924,7]
[321196928,1711972246211,-499.99,0.00056902,2]
[321196929,1711972246221,-85070.34610467,0.00056924,7]
[321196930,1711972246231,-220.506163,0.00056924,120]
[321196931,1711972246242,-151.0,0.00056924,120]
[321196932,1711972246252,-151.0,0.00056924,30]
[321196933,1711972246263,-299.509314,0.00056924,30]
[321196934,1711972246273,-152.521076,0.00056924,120]
[321196935,1711972246283,-152.521076,0.00056924,120]
[321196936,1711972246297,-201.071279,0.00056924,120]
[321196937,1711972246308,-201.071279,0.00056924,120]
[321196938,1711972246319,-151.0,0.00056924,120]
[321196939,1711972246329,-484.661152,0.00056924,120]
[321196940,1711972246340,-484.661152,0.00056924,120]
[321196941,1711972246351,-151.0,0.00056924,120]
[321196942,1711972246362,-763.02857143,0.00056926,7]
[321196943,1711972246372,-154421.04672092,0.00056934,7]
[321196944,1711972246392,-7482.23107909,0.00056934,7]
[321196946,1711972269847,668782.20790643,0.00025,2]
[321196948,1711972325333,269.0,0.000422,3]
[321196949,1711972357403,611.17619077,0.000433,2]
[321196952,1711972545715,3204.3543578,0.00043261,2]
[321196954,1711972555495,1607.93613744,0.00043261,4]
[321196957,1711972713548,155.85,0.00037808,2]
[321196958,1711972736731,3204.3543578,0.00043261,2]
[321196959,1711972801915,150.0,0.00043261,4]
[321196961,1711973007818,3204.3543578,0.00043271,2]
[321196966,1711973288139,153.49,0.00037808,2]
[321196968,1711973373331,3204.3543578,0.00043271,2]
[321196977,1711973433531,-1861.95618944,0.00043272,2]
[321196982,1711973433868,-56756.9024395,0.00043272,2]
[321197005,1711973438744,-808.75030777,0.00043272,2]
[321197006,1711973438755,-741.27723955,0.00043272,2]
[321197007,1711973438767,-420.8888349,0.00043272,2]
[321197008,1711973438778,-298.52743707,0.00043272,2]
[321197009,1711973438789,-362.69102512,0.00043272,2]
[321197010,1711973439015,-1029.99995,0.00043272,2]
[321197011,1711973439125,-1033.21403117,0.00043272,2]
[321197112,1711973440354,-51711.50308616,0.00043272,2]
[321197113,1711973440363,-153.49,0.00044892,2]
[321197114,1711973440372,-1000.0,0.00048,2]
[321197115,1711973440381,-25.29531355,0.0004989,2]
[321197116,1711973440395,-1169.70095007,0.0004989,2]
[321197117,1711973440404,-155.85,0.00050205,2]
[321197118,1711973440413,-153.47,0.000518,7]
[321197119,1711973440422,-153.49,0.00051976,2]
[321197120,1711973440431,-3204.3543578,0.0005313,2]
[321197121,1711973440441,-153.91,0.00054757,120]
[321197122,1711973440450,-1000.0,0.00054795,120]
[321197123,1711973440458,-212.49,0.00054826,30]
[321197124,1711973440467,-166.95,0.00054839,120]
[321197125,1711973440476,-232.48,0.00054914,120]
[321197126,1711973440486,-780.62,0.00054923,2]
[321197127,1711973440494,-9758.09801025,0.00054964,2]
[321197128,1711973440504,-2665.58,0.00054992,30]
[321197129,1711973440514,-18356.41,0.00055019,2]
[321197130,1711973440522,-2029.36175919,0.0005504,2]
[321197131,1711973440531,-800.0,0.00055064,120]
[321197132,1711973440541,-2255.0,0.000551,90]
[321197133,1711973440550,-1000.0,0.00055111,120]
[321197134,1711973440558,-153.47,0.000552,8]
[321197135,1711973440569,-203.94,0.00055236,120]
[321197136,1711973440577,-1000.0,0.00055428,120]
[321197137,1711973440586,-153.36,0.00055471,2]
[321197138,1711973440595,-200.0,0.00055624,120]
[321197139,1711973440604,-785.75137758,0.00055745,120]
[321197140,1711973440621,-214.24862242,0.00055745,120]
[321197141,1711973440630,-9758.09801018,0.0005579,2]
[321197142,1711973440640,-2029.36175917,0.00055858,2]
[321197143,1711973440650,-1153.69,0.00055929,120]
[321197144,1711973440659,-1000.0,0.00056,120]
[321197145,1711973440669,-1000.0,0.00056062,120]
[321197146,1711973440678,-153.36,0.00056193,2]
[321197147,1711973440688,-9625.69289096,0.0005637,2]
[321197148,1711973440697,-1000.0,0.00056378,120]
[321197149,1711973440706,-9083.9461787,0.00056616,2]
[321197150,1711973440720,-674.15183148,0.00056616,2]
[321197151,1711973440729,-2029.36175917,0.00056676,2]
[321197152,1711973440739,-1000.0,0.00056695,120]
[321197153,1711973440748,-2500.0,0.00056702,2]
[321197154,1711973440757,-162.10946534,0.00056789,14]
[321197155,1711973440767,-1466.84164853,0.00056802,4]
[321197156,1711973440776,-1074.27461243,0.00056802,120]
[321197157,1711973440786,-166.66737189,0.00056826,2]
[321197158,1711973440795,-7500.0,0.00056828,3]
[321197159,1711973440805,-287.00925043,0.00056886,7]
[321197160,1711973440814,-150.72,0.00056886,120]
[321197161,1711973440824,-375.10890213,0.00056887,2]
[321197162,1711973440833,-500.0,0.00056887,120]
[321197163,1711973440842,-500.0,0.00056887,120]
[321197164,1711973440851,-661.67,0.00056887,120]
[321197165,1711973440861,-500.0,0.00056887,120]
[321197166,1711973440869,-810.22,0.00056887,120]
[321197167,1711973440878,-523.3,0.00056887,120]
[321197168,1711973440888,-500.0,0.00056887,120]
[321197169,1711973440897,-500.0,0.00056887,120]
[321197170,1711973440907,-500.0,0.00056887,120]
[321197171,1711973440916,-503.82,0.00056887,120]
[321197172,1711973440924,-500.0,0.00056887,120]
[321197173,1711973440934,-652.24,0.00056887,120]
[321197174,1711973440944,-1792.35,0.00056887,120]
[321197175,1711973440954,-500.0,0.00056887,120]
[321197176,1711973440963,-500.0,0.00056887,120]
[321197177,1711973440973,-352.65935168,0.00056887,120]
[321197178,1711973440982,-500.0,0.00056887,120]
[321197179,1711973440991,-500.0,0.00056887,120]
[321197180,1711973441000,-1081.35,0.00056887,120]
[321197181,1711973441009,-710.82,0.00056887,120]
[321197182,1711973441018,-500.0,0.00056887,120]
[321197183,1711973441027,-500.0,0.00056887,120]
[321197184,1711973441036,-15711.67282882,0.00056888,2]
[321197185,1711973441047,-68006.03703578,0.00056888,2]
[321197186,1711973441058,-355.24310599,0.00056888,2]
[321197187,1711973441071,-734.43122561,0.00056888,2]
[321197188,1711973441083,-1531.22028877,0.00056888,2]
[321197199,1711973443420,-8886.88922032,0.00056888,2]
[321197200,1711973443432,-2149.97354158,0.00056888,2]
[321197201,1711973443444,-4481.08535381,0.00056888,2]
[321197202,1711973443455,-2629.10638,0.00056888,2]
[321197203,1711973443476,-451.53,0.00053041,2]
[321197204,1711973443486,-3429.22849653,0.00056888,2]
[321197205,1711973443560,-5.80720365,0.00056888,2]
[321197206,1711973443572,-1433.0,0.00056888,2]
[321197241,1711973446416,-451.53,0.00055305,2]
[321197242,1711973446429,-52641.15188946,0.00056888,2]
[321197243,1711973446438,-2676.11619855,0.00056889,2]
[321197244,1711973446452,-97125.57580231,0.00056889,2]
[321197245,1711973446461,-49246.34809245,0.00056896,2]
[321197246,1711973446477,-30388.4038097,0.00056896,2]
[321197247,1711973446489,-5187.82055422,0.00056896,2]
[321197248,1711973446704,-2115.30643136,0.00056787,2]
[321197249,1711973446717,-384.69356864,0.00056787,2]
[321197250,1711973446727,-77172.27411395,0.00056896,2]
[321197251,1711973446737,-99801.69200086,0.00056902,2]
[321197252,1711973446747,-375.10890213,0.00056912,2]
[321197253,1711973446757,-752.66990572,0.00056912,2]
[321197254,1711973446767,-153.36,0.00056916,2]
[321197255,1711973446776,-4287.279947,0.00056923,2]
[321197256,1711973446786,-151.0,0.00056925,120]
[321197257,1711973446795,-151.0,0.00056925,30]
[321197258,1711973446804,-151.0,0.00056925,120]
[321197259,1711973446813,-151.0,0.00056925,120]
[321197260,1711973446824,-160.857023,0.00056925,120]
[321197261,1711973446834,-160.857023,0.00056925,120]
[321197262,1711973446843,-151.0,0.00056925,120]
[321197263,1711973446853,-387.728922,0.00056925,120]
[321197264,1711973446862,-387.728922,0.00056925,120]
[321197265,1711973446872,-151.0,0.00056925,120]
[321197266,1711973446881,-99801.69200086,0.00056925,2]
[321197267,1711973446890,-151.0,0.00056926,120]